[Event "European Online Club-ch-C 2021"]
[Site "Online"]
[Date "2021.03.27"]
[Round "7.13"]
[White "Migot, Tangi"]
[Black "Fedoseev, Vladimir"]
[Result "0-1"]
[ECO "B84"]
[WhiteElo "2353"]
[BlackElo "2687"]
[Annotator "ChessBase"]
[PlyCount "120"]
[EventDate "2021.03.27"]
[EventType "team-tourn"]
[EventCountry "NET"]
[SourceTitle "playchess.com"]
[Source "ChessBase"]
[SourceQuality "1"]
[TimeControl "900+5"]

1. e4 {[%emt 0:00:00]} c5 {[%emt 0:00:04]} 2. Nf3 {[%emt 0:00:22]} d6 {[%emt 0:00:03]} 3. d4 {[%emt 0:00:04]} cxd4 {[%emt 0:00:01]} 4. Nxd4 {[%emt 0:00:00]} Nf6 {[%emt 0:00:01]} 5. Nc3 {[%emt 0:00:01]} a6 {[%emt 0:00:01]} 6. Be2 {[%emt 0:00:02]} e6 {[%emt 0:00:05]} 7. O-O {[%emt 0:00:03]} b5 {[%emt 0:00:04]} 8. Bf3 {[%emt 0:00:06]} Ra7 {[%emt 0:00:01]} 9. Be3 {[%emt 0:00:12]} Rc7 {[%emt 0:00:06]} 10. a4 {[%emt 0:00:25]} b4 {[%emt 0:00:03]} 11. Na2 {[%emt 0:00:03]} Bb7 {[%emt 0:00:01]} 12. Nb3 {[%emt 0:00:37]} Nbd7 {[%emt 0:00:08]} 13. Nxb4 {[%emt 0:00:22]} Qa8 {[%emt 0:00:26]} 14. Na5 {[%emt 0:01:13]} Bxe4 {[%emt 0:00:03]} 15. Bxe4 {[%emt 0:00:04]} Nxe4 {[%emt 0:00:02]} 16. Qe2 {[%emt 0:00:24]} Nec5 {[%emt 0:00:24]} 17. Rfd1 {[%emt 0:01:11]} Be7 {[%emt 0:01:35]} 18. Bf4 {[%emt 0:00:47]} Qe4 {[%emt 0:00:22]} 19. Qxe4 {[%emt 0:02:09]} Nxe4 {[%emt 0:00:04]} 20. c3 {[%emt 0:00:37]} g5 {[%emt 0:01:13]} 21. Be3 {[%emt 0:00:11]} Nb8 {[%emt 0:00:01]} 22. f3 {[%emt 0:01:45]} Nc5 {[%emt 0:00:03]} 23. Nd3 {[%emt 0:00:09]} Nxd3 {[%emt 0:00:52]} 24. Rxd3 {[%emt 0:00:00]} Nd7 {[%emt 0:00:05]} 25. Rc1 {[%emt 0:00:36]} d5 {[%emt 0:00:12]} 26. b4 {[%emt 0:01:07]} O-O {[%emt 0:00:21]} 27. b5 {[%emt 0:00:45]} axb5 {[%emt 0:00:18]} 28. axb5 {[%emt 0:00:00]} Bc5 {[%emt 0:00:02]} 29. Nc6 {[%emt 0:00:20]} Rb7 {[%emt 0:00:07]} 30. Rb1 {[%emt 0:00:04]} Ra8 {[%emt 0:00:28]} 31. Bxc5 {[%emt 0:00:38]} Nxc5 {[%emt 0:00:04]} 32. Rd4 {[%emt 0:00:02]} Ra2 {[%emt 0:00:24]} 33. h4 {[%emt 0:00:02]} gxh4 {[%emt 0:00:30]} 34. Rxh4 {[%emt 0:00:03]} f5 {[%emt 0:00:05]} 35. c4 {[%emt 0:00:56]} Rg7 {[%emt 0:01:10]} 36. cxd5 {[%emt 0:00:19]} Raxg2+ {[%emt 0:00:03]} 37. Kh1 {[%emt 0:00:02]} Nd3 {[%emt 0:00:01]} 38. Rg4 {[%emt 0:00:33]} fxg4 {[%emt 0:00:22]} 39. Kxg2 {[%emt 0:00:01]} g3 {[%emt 0:00:25]} 40. Ra1 {[%emt 0:01:04]} Nf4+ {[%emt 0:00:06]} 41. Kg1 {[%emt 0:00:03]} h5 {[%emt 0:00:50]} 42. Ra8+ {[%emt 0:00:27]} Kh7 {[%emt 0:00:04]} 43. Ra7 {[%emt 0:00:00]} Rxa7 {[%emt 0:00:02]} 44. Nxa7 {[%emt 0:00:00]} Nxd5 {[%emt 0:00:01]} 45. Nc6 {[%emt 0:00:12]} h4 {[%emt 0:00:05]} 46. Nd4 {[%emt 0:00:03]} Kg6 {[%emt 0:00:25]} 47. Kg2 {[%emt 0:00:28]} e5 {[%emt 0:00:17]} 48. Ne2 {[%emt 0:00:16]} Kh5 {[%emt 0:00:11]} 49. Kh3 {[%emt 0:00:09]} Kg5 {[%emt 0:00:02]} 50. Kg2 {[%emt 0:00:03]} Ne3+ {[%emt 0:00:28]} 51. Kh3 {[%emt 0:00:03]} Nc4 {[%emt 0:00:02]} 52. Kg2 {[%emt 0:00:08]} e4 {[%emt 0:00:06]} 53. fxe4 {[%emt 0:00:02]} Kg4 {[%emt 0:00:02]} 54. Nxg3 {[%emt 0:00:11]} hxg3 {[%emt 0:00:02]} 55. e5 {[%emt 0:00:01]} Nxe5 {[%emt 0:00:02]} 56. b6 {[%emt 0:00:02]} Nd7 {[%emt 0:00:01]} 57. b7 {[%emt 0:00:01]} Nb8 {[%emt 0:00:02]} 58. Kg1 {[%emt 0:00:02]} Kf3 {[%emt 0:00:01]} 59. Kf1 {[%emt 0:00:02]} g2+ {[%emt 0:00:01]} 60. Kg1 {[%emt 0:00:01]} Nd7 {[%emt 0:00:01]} 0-1

[Event "European Online Club-ch-C 2021"]
[Site "Online"]
[Date "2021.03.27"]
[Round "7.15"]
[White "Bouget, Alexandre"]
[Black "Shimanov, Aleksandr"]
[Result "1-0"]
[ECO "E94"]
[WhiteElo "2247"]
[BlackElo "2597"]
[Annotator "ChessBase"]
[PlyCount "83"]
[EventDate "2021.03.27"]
[EventType "team-tourn"]
[EventCountry "NET"]
[SourceTitle "playchess.com"]
[Source "ChessBase"]
[SourceQuality "1"]
[TimeControl "900+5"]

1. d4 {[%emt 0:00:00]} Nf6 {[%emt 0:00:15]} 2. c4 {[%emt 0:00:03]} g6 {[%emt 0:00:06]} 3. Nc3 {[%emt 0:00:03]} Bg7 {[%emt 0:00:07]} 4. e4 {[%emt 0:00:02]} O-O {[%emt 0:00:03]} 5. Be2 {[%emt 0:00:01]} d6 {[%emt 0:00:03]} 6. Nf3 {[%emt 0:00:04]} e5 {[%emt 0:00:19]} 7. O-O {[%emt 0:00:06]} Bg4 {[%emt 0:00:10]} 8. d5 {[%emt 0:00:14]} a5 {[%emt 0:00:13]} 9. Be3 {[%emt 0:00:14]} Na6 {[%emt 0:00:07]} 10. Nd2 {[%emt 0:00:47]} Bd7 {[%emt 0:00:03]} 11. b3 {[%emt 0:02:09]} Ne8 {[%emt 0:01:30]} 12. a3 {[%emt 0:00:08]} f5 {[%emt 0:00:03]} 13. f3 {[%emt 0:00:02]} f4 {[%emt 0:00:18]} 14. Bf2 {[%emt 0:00:03]} Bf6 {[%emt 0:00:11]} 15. Kh1 {[%emt 0:00:08]} Bh4 {[%emt 0:00:08]} 16. Qe1 {[%emt 0:00:27]} Bxf2 {[%emt 0:00:11]} 17. Qxf2 {[%emt 0:00:00]} Nf6 {[%emt 0:00:21]} 18. Rab1 {[%emt 0:01:01]} c5 {[%emt 0:02:28]} 19. dxc6 {[%emt 0:00:47]} bxc6 {[%emt 0:00:02]} 20. b4 {[%emt 0:00:09]} axb4 {[%emt 0:00:22]} 21. axb4 {[%emt 0:00:00]} c5 {[%emt 0:00:07]} 22. b5 {[%emt 0:00:14]} Nc7 {[%emt 0:00:11]} 23. Nb3 {[%emt 0:01:59]} Ne6 {[%emt 0:00:20]} 24. Bd3 {[%emt 0:00:32]} g5 {[%emt 0:03:28]} 25. Ra1 {[%emt 0:00:37]} Rxa1 {[%emt 0:00:27]} 26. Rxa1 {[%emt 0:00:04]} g4 {[%emt 0:00:01]} 27. Qh4 {[%emt 0:00:40]} gxf3 {[%emt 0:00:55]} 28. gxf3 {[%emt 0:00:21]} Kh8 {[%emt 0:00:11]} 29. Nd5 {[%emt 0:02:06]} Nxd5 {[%emt 0:03:33]} 30. Qxd8 {[%emt 0:00:04]} Rxd8 {[%emt 0:00:00]} 31. exd5 {[%emt 0:00:10]} Ng5 {[%emt 0:00:03]} 32. Nd2 {[%emt 0:00:18]} Nh3 {[%emt 0:00:11]} 33. Ne4 {[%emt 0:00:37]} Bf5 {[%emt 0:00:07]} 34. Nxd6 {[%emt 0:00:21]} Rxd6 {[%emt 0:01:07]} 35. Bxf5 {[%emt 0:00:04]} Ng5 {[%emt 0:00:02]} 36. Ra6 {[%emt 0:00:15]} Rd8 {[%emt 0:00:04]} 37. Rc6 {[%emt 0:02:17]} Nxf3 {[%emt 0:00:08]} 38. b6 {[%emt 0:00:12]} e4 {[%emt 0:00:08]} 39. b7 {[%emt 0:00:20]} e3 {[%emt 0:00:05]} 40. Rc8 {[%emt 0:00:09]} e2 {[%emt 0:00:04]} 41. Rxd8+ {[%emt 0:00:02]} Kg7 {[%emt 0:00:01]} 42. Re8 {[%emt 0:00:01]} 1-0

[Event "European Online Club-ch-C 2021"]
[Site "Online"]
[Date "2021.03.27"]
[Round "7.16"]
[White "Ponkratov, Pavel"]
[Black "Lahoche, Dorian"]
[Result "1-0"]
[ECO "E73"]
[WhiteElo "2619"]
[BlackElo "2124"]
[Annotator "ChessBase"]
[PlyCount "69"]
[EventDate "2021.03.27"]
[EventType "team-tourn"]
[EventCountry "NET"]
[SourceTitle "playchess.com"]
[Source "ChessBase"]
[SourceQuality "1"]
[TimeControl "900+5"]

1. d4 {[%emt 0:00:00]} Nf6 {[%emt 0:00:03]} 2. c4 {[%emt 0:00:02]} g6 {[%emt 0:00:01]} 3. Nc3 {[%emt 0:00:02]} Bg7 {[%emt 0:00:03]} 4. e4 {[%emt 0:00:02]} d6 {[%emt 0:00:02]} 5. Be2 {[%emt 0:00:07]} O-O {[%emt 0:00:02]} 6. Be3 {[%emt 0:00:02]} e5 {[%emt 0:00:10]} 7. d5 {[%emt 0:00:01]} a5 {[%emt 0:00:01]} 8. h4 {[%emt 0:00:02]} h5 {[%emt 0:00:14]} 9. f3 {[%emt 0:00:09]} Na6 {[%emt 0:00:10]} 10. Nh3 {[%emt 0:00:05]} Nc5 {[%emt 0:00:27]} 11. Ng5 {[%emt 0:00:02]} Qe7 {[%emt 0:00:30]} 12. Qd2 {[%emt 0:00:03]} a4 {[%emt 0:00:36]} 13. O-O-O {[%emt 0:00:20]} Rd8 {[%emt 0:00:13]} 14. Kb1 {[%emt 0:00:04]} Bd7 {[%emt 0:00:20]} 15. Rdg1 {[%emt 0:00:06]} c6 {[%emt 0:00:20]} 16. g4 {[%emt 0:00:13]} Kh8 {[%emt 0:01:11]} 17. dxc6 {[%emt 0:00:41]} Bxc6 {[%emt 0:00:22]} 18. Rd1 {[%emt 0:00:53]} Kg8 {[%emt 0:00:21]} 19. gxh5 {[%emt 0:00:23]} Nxh5 {[%emt 0:00:05]} 20. Rhg1 {[%emt 0:00:01]} Ne6 {[%emt 0:00:50]} 21. Nxe6 {[%emt 0:00:39]} Qxe6 {[%emt 0:00:00]} 22. Bb6 {[%emt 0:00:57]} Rd7 {[%emt 0:00:24]} 23. Nd5 {[%emt 0:00:28]} Bxd5 {[%emt 0:00:38]} 24. cxd5 {[%emt 0:00:03]} Qf6 {[%emt 0:00:44]} 25. Qg5 {[%emt 0:00:17]} Nf4 {[%emt 0:00:43]} 26. Bb5 {[%emt 0:00:03]} Re7 {[%emt 0:00:07]} 27. Rc1 {[%emt 0:00:06]} Qxg5 {[%emt 0:00:39]} 28. hxg5 {[%emt 0:00:10]} f6 {[%emt 0:00:33]} 29. gxf6 {[%emt 0:00:10]} Bxf6 {[%emt 0:00:00]} 30. Bc7 {[%emt 0:00:02]} Rh7 {[%emt 0:00:54]} 31. Bxd6 {[%emt 0:00:04]} Rh2 {[%emt 0:00:15]} 32. Bb4 {[%emt 0:00:20]} Kf7 {[%emt 0:00:57]} 33. Rc7+ {[%emt 0:00:05]} Kg8 {[%emt 0:00:10]} 34. d6 {[%emt 0:00:02]} Ne6 {[%emt 0:00:46]} 35. Bc4 {[%emt 0:00:02]} 1-0

[Event "European Online Club-ch-C 2021"]
[Site "Online"]
[Date "2021.03.27"]
[Round "7.17"]
[White "Braun, Christian"]
[Black "Wirig, Anthony"]
[Result "1-0"]
[ECO "A08"]
[WhiteElo "2409"]
[BlackElo "2500"]
[Annotator "ChessBase"]
[PlyCount "99"]
[EventDate "2021.03.27"]
[EventType "team-tourn"]
[EventCountry "NET"]
[SourceTitle "playchess.com"]
[Source "ChessBase"]
[SourceQuality "1"]
[TimeControl "900+5"]

1. e4 {[%emt 0:00:00]} c5 {[%emt 0:00:17]} 2. Nf3 {[%emt 0:00:56]} e6 {[%emt 0:00:05]} 3. d3 {[%emt 0:00:07]} Nc6 {[%emt 0:00:03]} 4. g3 {[%emt 0:00:05]} d5 {[%emt 0:00:06]} 5. Nbd2 {[%emt 0:00:06]} Nge7 {[%emt 0:00:10]} 6. Bg2 {[%emt 0:00:04]} g6 {[%emt 0:00:02]} 7. O-O {[%emt 0:00:28]} Bg7 {[%emt 0:00:05]} 8. Re1 {[%emt 0:00:10]} b6 {[%emt 0:00:14]} 9. exd5 {[%emt 0:00:15]} Nxd5 {[%emt 0:00:11]} 10. d4 {[%emt 0:00:03]} cxd4 {[%emt 0:00:12]} 11. Nb3 {[%emt 0:00:03]} O-O {[%emt 0:00:30]} 12. Nfxd4 {[%emt 0:00:06]} Bb7 {[%emt 0:01:16]} 13. Nxc6 {[%emt 0:00:41]} Bxc6 {[%emt 0:00:06]} 14. Nd4 {[%emt 0:00:01]} Rc8 {[%emt 0:01:24]} 15. a4 {[%emt 0:04:16]} Ba8 {[%emt 0:01:06]} 16. a5 {[%emt 0:00:17]} bxa5 {[%emt 0:02:24]} 17. c3 {[%emt 0:00:09]} Qb6 {[%emt 0:01:23]} 18. Qa4 {[%emt 0:01:44]} Rxc3 {[%emt 0:02:35]} 19. bxc3 {[%emt 0:00:16]} Nxc3 {[%emt 0:00:04]} 20. Qxa5 {[%emt 0:00:18]} Qxa5 {[%emt 0:02:40]} 21. Rxa5 {[%emt 0:00:00]} Bxd4 {[%emt 0:00:04]} 22. Be3 {[%emt 0:00:02]} Bxe3 {[%emt 0:00:11]} 23. Rxe3 {[%emt 0:00:00]} Bxg2 {[%emt 0:00:05]} 24. Kxg2 {[%emt 0:00:04]} Nd5 {[%emt 0:00:01]} 25. Rea3 {[%emt 0:00:08]} h5 {[%emt 0:00:10]} 26. Rxa7 {[%emt 0:00:07]} Kg7 {[%emt 0:00:01]} 27. Rb7 {[%emt 0:00:04]} Nf6 {[%emt 0:00:12]} 28. Raa7 {[%emt 0:00:07]} Ng4 {[%emt 0:00:02]} 29. h3 {[%emt 0:00:20]} Nf6 {[%emt 0:00:12]} 30. Kf3 {[%emt 0:00:06]} Nd5 {[%emt 0:00:04]} 31. Ke4 {[%emt 0:00:10]} Kf6 {[%emt 0:00:03]} 32. f4 {[%emt 0:00:14]} Nc3+ {[%emt 0:00:02]} 33. Kf3 {[%emt 0:00:04]} Nd5 {[%emt 0:00:05]} 34. g4 {[%emt 0:00:04]} hxg4+ {[%emt 0:00:03]} 35. hxg4 {[%emt 0:00:00]} g5 {[%emt 0:00:25]} 36. f5 {[%emt 0:01:15]} exf5 {[%emt 0:01:12]} 37. Ra6+ {[%emt 0:00:01]} Ke5 {[%emt 0:00:03]} 38. Ra5 {[%emt 0:01:03]} fxg4+ {[%emt 0:00:03]} 39. Kxg4 {[%emt 0:00:00]} f5+ {[%emt 0:00:04]} 40. Kxg5 {[%emt 0:00:02]} Rg8+ {[%emt 0:00:01]} 41. Kh6 {[%emt 0:00:08]} Rd8 {[%emt 0:00:20]} 42. Kg5 {[%emt 0:00:15]} Rf8 {[%emt 0:00:02]} 43. Rd7 {[%emt 0:00:20]} Rg8+ {[%emt 0:00:10]} 44. Kh6 {[%emt 0:00:02]} f4 {[%emt 0:00:06]} 45. Rdxd5+ {[%emt 0:00:07]} Ke4 {[%emt 0:00:03]} 46. Re5+ {[%emt 0:00:01]} Kf3 {[%emt 0:00:02]} 47. Kh5 {[%emt 0:01:06]} Kf2 {[%emt 0:00:08]} 48. Rf5 {[%emt 0:00:13]} f3 {[%emt 0:00:02]} 49. Ra3 {[%emt 0:00:08]} Rg3 {[%emt 0:00:02]} 50. Kh4 {[%emt 0:00:01]} 1-0

[Event "European Online Club-ch-C 2021"]
[Site "Online"]
[Date "2021.03.27"]
[Round "7.18"]
[White "Micottis, Dorian"]
[Black "Lenaerts, Lennert"]
[Result "1-0"]
[ECO "C77"]
[WhiteElo "2223"]
[BlackElo "2357"]
[Annotator "NA"]
[PlyCount "109"]
[EventDate "2021.03.27"]
[EventType "team-tourn"]
[EventCountry "NET"]
[SourceTitle "playchess.com"]
[Source "ChessBase"]
[SourceQuality "1"]
[TimeControl "900+5"]

1. e4 {[%emt 0:00:00]} e5 {[%emt 0:00:05]} 2. Nf3 {[%emt 0:00:02]} Nc6 {[%emt 0:00:02]} 3. Bb5 {[%emt 0:00:02]} a6 {[%emt 0:00:02]} 4. Ba4 {[%emt 0:00:01]} Nf6 {[%emt 0:00:01]} 5. d3 {[%emt 0:00:01]} b5 {[%emt 0:00:03]} 6. Bb3 {[%emt 0:00:02]} Bc5 {[%emt 0:00:02]} 7. a4 {[%emt 0:00:41]} Rb8 {[%emt 0:00:37]} 8. O-O {[%emt 0:00:19]} h6 {[%emt 0:00:17]} 9. axb5 {[%emt 0:00:46]} axb5 {[%emt 0:00:05]} 10. Nc3 {[%emt 0:00:50]} d6 {[%emt 0:00:09]} 11. Nd5 {[%emt 0:00:26]} Bg4 {[%emt 0:00:19]} 12. c3 {[%emt 0:00:13]} Nxd5 {[%emt 0:00:03]} 13. Bxd5 {[%emt 0:00:10]} Ne7 {[%emt 0:00:03]} 14. Bb3 {[%emt 0:00:34]} O-O {[%emt 0:00:36]} 15. h3 {[%emt 0:00:15]} Bh5 {[%emt 0:00:13]} 16. g4 {[%emt 0:01:38]} Bg6 {[%emt 0:00:04]} 17. Nh4 {[%emt 0:00:05]} c6 {[%emt 0:00:33]} 18. Be3 {[%emt 0:01:00]} Bxe3 {[%emt 0:01:00]} 19. fxe3 {[%emt 0:00:03]} d5 {[%emt 0:00:01]} 20. Nxg6 {[%emt 0:02:01]} Nxg6 {[%emt 0:02:36]} 21. exd5 {[%emt 0:00:15]} cxd5 {[%emt 0:00:04]} 22. Qf3 {[%emt 0:00:27]} Ne7 {[%emt 0:00:06]} 23. Ra7 {[%emt 0:00:59]} Rb6 {[%emt 0:03:23]} 24. Qg3 {[%emt 0:01:30]} Kh8 {[%emt 0:00:21]} 25. d4 {[%emt 0:01:26]} exd4 {[%emt 0:00:14]} 26. exd4 {[%emt 0:00:19]} b4 {[%emt 0:00:04]} 27. Bc2 {[%emt 0:00:43]} bxc3 {[%emt 0:00:04]} 28. bxc3 {[%emt 0:00:01]} Kg8 {[%emt 0:01:56]} 29. Qc7 {[%emt 0:01:24]} Qxc7 {[%emt 0:01:03]} 30. Rxc7 {[%emt 0:00:01]} Re6 {[%emt 0:00:05]} 31. Kf2 {[%emt 0:00:32]} f5 {[%emt 0:00:15]} 32. gxf5 {[%emt 0:00:21]} Nxf5 {[%emt 0:00:05]} 33. Kg1 {[%emt 0:00:13]} Rg6+ {[%emt 0:00:34]} 34. Kh2 {[%emt 0:00:02]} Rg2+ {[%emt 0:00:05]} 35. Kxg2 {[%emt 0:00:20]} Ne3+ {[%emt 0:00:04]} 36. Kg3 {[%emt 0:00:08]} Rxf1 {[%emt 0:00:03]} 37. Bb3 {[%emt 0:00:07]} Rb1 {[%emt 0:00:40]} 38. Rb7 {[%emt 0:00:02]} Kf8 {[%emt 0:00:02]} 39. Rb4 {[%emt 0:00:06]} Rc1 {[%emt 0:00:06]} 40. Kf4 {[%emt 0:00:09]} Rxc3 {[%emt 0:00:07]} 41. Rb5 {[%emt 0:00:03]} Ke7 {[%emt 0:00:32]} 42. Ke5 {[%emt 0:00:02]} Nc4+ {[%emt 0:01:33]} 43. Kxd5 {[%emt 0:00:01]} Nd6 {[%emt 0:00:02]} 44. Rb6 {[%emt 0:00:08]} Rxh3 {[%emt 0:00:02]} 45. Bc2 {[%emt 0:00:08]} Rh5+ {[%emt 0:00:09]} 46. Kc6 {[%emt 0:00:01]} Rh3 {[%emt 0:00:02]} 47. Kd5 {[%emt 0:00:06]} Rc3 {[%emt 0:00:08]} 48. Bg6 {[%emt 0:00:07]} Nc8 {[%emt 0:00:07]} 49. Rb7+ {[%emt 0:00:03]} Kf6 {[%emt 0:00:02]} 50. Be4 {[%emt 0:00:07]} Ne7+ {[%emt 0:00:03]} 51. Kd6 {[%emt 0:00:02]} Rc4 {[%emt 0:00:02]} 52. Rxe7 {[%emt 0:00:13]} Rxd4+ {[%emt 0:00:05]} 53. Kc5 {[%emt 0:00:01]} Kxe7 {[%emt 0:00:16]} 54. Kxd4 {[%emt 0:00:02]} Kf6 {[%emt 0:00:03]} 55. Ke3 {[%emt 0:00:07]} 1-0

[Event "European Online Club-ch-C 2021"]
[Site "Online"]
[Date "2021.03.27"]
[Round "7.19"]
[White "Van Meegen, Ruud"]
[Black "Bruch, Jochen"]
[Result "1-0"]
[ECO "A30"]
[WhiteElo "2295"]
[BlackElo "2187"]
[Annotator "NA"]
[PlyCount "53"]
[EventDate "2021.03.27"]
[EventType "team-tourn"]
[EventCountry "NET"]
[SourceTitle "playchess.com"]
[Source "ChessBase"]
[SourceQuality "1"]
[TimeControl "900+5"]

1. Nf3 {[%emt 0:00:00]} Nf6 {[%emt 0:00:04]} 2. c4 {[%emt 0:00:02]} e6 {[%emt 0:00:04]} 3. b3 {[%emt 0:00:13]} c5 {[%emt 0:00:04]} 4. Bb2 {[%emt 0:00:03]} Be7 {[%emt 0:00:03]} 5. g3 {[%emt 0:00:13]} O-O {[%emt 0:00:05]} 6. Bg2 {[%emt 0:00:01]} d6 {[%emt 0:00:07]} 7. O-O {[%emt 0:00:04]} a6 {[%emt 0:00:05]} 8. Nc3 {[%emt 0:00:12]} Qc7 {[%emt 0:00:07]} 9. d4 {[%emt 0:00:13]} cxd4 {[%emt 0:00:13]} 10. Nxd4 {[%emt 0:00:03]} Ra7 {[%emt 0:01:33]} 11. Rc1 {[%emt 0:04:48]} Bd7 {[%emt 0:02:22]} 12. Qd2 {[%emt 0:01:15]} Rd8 {[%emt 0:02:03]} 13. Rfd1 {[%emt 0:00:13]} Be8 {[%emt 0:00:45]} 14. Qe3 {[%emt 0:00:41]} Ra8 {[%emt 0:01:48]} 15. h3 {[%emt 0:00:12]} Kh8 {[%emt 0:03:52]} 16. g4 {[%emt 0:00:58]} h6 {[%emt 0:00:08]} 17. Nf3 {[%emt 0:02:08]} Nbd7 {[%emt 0:01:45]} 18. Nd5 {[%emt 0:00:37]} exd5 {[%emt 0:01:02]} 19. Qxe7 {[%emt 0:00:04]} dxc4 {[%emt 0:00:05]} 20. Bxf6 {[%emt 0:01:55]} gxf6 {[%emt 0:00:03]} 21. Nh4 {[%emt 0:00:39]} d5 {[%emt 0:00:06]} 22. Rxd5 {[%emt 0:00:29]} Qf4 {[%emt 0:00:03]} 23. e3 {[%emt 0:00:11]} Qb8 {[%emt 0:00:11]} 24. Nf5 {[%emt 0:00:50]} b5 {[%emt 0:00:08]} 25. Rxd7 {[%emt 0:00:11]} Qe5 {[%emt 0:00:03]} 26. Qf8+ {[%emt 0:00:05]} Kh7 {[%emt 0:00:04]} 27. Qg7# {[%emt 0:00:02]} 1-0

[Event "European Online Club-ch-C 2021"]
[Site "Online"]
[Date "2021.03.27"]
[Round "7.20"]
[White "Kirsch, Laurent"]
[Black "Zimmermann, Luc"]
[Result "1-0"]
[ECO "A65"]
[WhiteElo "2120"]
[BlackElo "2151"]
[Annotator "NA"]
[PlyCount "79"]
[EventDate "2021.03.27"]
[EventType "team-tourn"]
[EventCountry "NET"]
[SourceTitle "playchess.com"]
[Source "ChessBase"]
[SourceQuality "1"]
[TimeControl "900+5"]

1. d4 {[%emt 0:00:00]} Nf6 {[%emt 0:00:11]} 2. c4 {[%emt 0:00:03]} g6 {[%emt 0:00:05]} 3. f3 {[%emt 0:00:03]} c5 {[%emt 0:00:20]} 4. d5 {[%emt 0:00:05]} e6 {[%emt 0:00:05]} 5. e4 {[%emt 0:00:15]} exd5 {[%emt 0:00:01]} 6. cxd5 {[%emt 0:00:05]} d6 {[%emt 0:00:06]} 7. Nc3 {[%emt 0:00:09]} Bg7 {[%emt 0:00:04]} 8. Nge2 {[%emt 0:00:34]} a6 {[%emt 0:01:25]} 9. a4 {[%emt 0:00:08]} Nbd7 {[%emt 0:00:03]} 10. Ng3 {[%emt 0:00:10]} h5 {[%emt 0:00:04]} 11. Be2 {[%emt 0:00:08]} h4 {[%emt 0:00:07]} 12. Nf1 {[%emt 0:00:03]} Nh5 {[%emt 0:00:51]} 13. Be3 {[%emt 0:00:27]} Be5 {[%emt 0:03:35]} 14. Qd2 {[%emt 0:01:17]} Qf6 {[%emt 0:01:47]} 15. Bg5 {[%emt 0:01:38]} Qg7 {[%emt 0:00:41]} 16. Bxh4 {[%emt 0:00:38]} Nf4 {[%emt 0:01:13]} 17. Bg5 {[%emt 0:01:01]} Nxg2+ {[%emt 0:00:28]} 18. Kd1 {[%emt 0:00:37]} Bd4 {[%emt 0:02:40]} 19. Ne3 {[%emt 0:01:06]} Nxe3+ {[%emt 0:00:43]} 20. Bxe3 {[%emt 0:00:00]} Bxe3 {[%emt 0:00:41]} 21. Qxe3 {[%emt 0:00:02]} Ne5 {[%emt 0:00:29]} 22. h4 {[%emt 0:00:23]} Qf6 {[%emt 0:00:31]} 23. Qf2 {[%emt 0:00:31]} Bd7 {[%emt 0:00:17]} 24. Kc2 {[%emt 0:00:17]} O-O-O {[%emt 0:00:14]} 25. Qg3 {[%emt 0:00:19]} c4 {[%emt 0:00:08]} 26. f4 {[%emt 0:00:20]} Nd3 {[%emt 0:00:01]} 27. Bxd3 {[%emt 0:00:07]} cxd3+ {[%emt 0:00:02]} 28. Kxd3 {[%emt 0:00:03]} Kb8 {[%emt 0:00:12]} 29. Qg5 {[%emt 0:00:20]} Qg7 {[%emt 0:00:08]} 30. h5 {[%emt 0:00:08]} Rdg8 {[%emt 0:00:04]} 31. Qe7 {[%emt 0:00:38]} f5 {[%emt 0:00:03]} 32. Qxd6+ {[%emt 0:00:11]} Ka8 {[%emt 0:00:03]} 33. e5 {[%emt 0:00:10]} gxh5 {[%emt 0:00:14]} 34. Rag1 {[%emt 0:00:09]} Qf7 {[%emt 0:00:03]} 35. e6 {[%emt 0:00:04]} Qf6 {[%emt 0:00:05]} 36. Qxd7 {[%emt 0:00:08]} Rg4 {[%emt 0:00:03]} 37. Rxg4 {[%emt 0:00:18]} fxg4 {[%emt 0:00:03]} 38. Qf7 {[%emt 0:00:07]} Qd8 {[%emt 0:00:06]} 39. Rxh5 {[%emt 0:00:12]} Rf8 {[%emt 0:00:06]} 40. e7 {[%emt 0:00:10]} 1-0